[Event "*** SCC Grand Prix: Titled Tuesday Blitz"]
[Site "Chess.com"]
[Date "2020.10.13"]
[Round "3"]
[White "JoliyRoger"]
[Black "A-S-00"]
[Result "0-1"]
[WhiteElo "2445"]
[BlackElo "2259"]
[TimeControl "180+1"]
[EndTime "10:30:44 PDT"]
[Termination "A-S-00 won by checkmate"]

1. Nf3 {[%clk 0:03:00.9]} 1... d5 {[%clk 0:02:59.3]} 2. c4 {[%clk 0:03:01]} 2...
c6 {[%clk 0:02:58.7]} 3. e3 {[%clk 0:03:01]} 3... Nf6 {[%clk 0:02:58.3]} 4. b3
{[%clk 0:03:01.6]} 4... g6 {[%clk 0:02:57.8]} 5. Bb2 {[%clk 0:03:02.1]} 5... Bg7
{[%clk 0:02:58.1]} 6. d4 {[%clk 0:03:02.7]} 6... O-O {[%clk 0:02:58.1]} 7. Nbd2
{[%clk 0:03:03.4]} 7... Nbd7 {[%clk 0:02:57.7]} 8. Bd3 {[%clk 0:03:03.5]} 8...
b6 {[%clk 0:02:56.1]} 9. O-O {[%clk 0:03:04.1]} 9... Bb7 {[%clk 0:02:56.4]} 10.
h3 {[%clk 0:03:05]} 10... c5 {[%clk 0:02:50.9]} 11. Qe2 {[%clk 0:03:02.3]} 11...
Rc8 {[%clk 0:02:46.6]} 12. Rad1 {[%clk 0:02:44.8]} 12... Qc7 {[%clk 0:02:43.7]}
13. Rfe1 {[%clk 0:02:41.7]} 13... Qb8 {[%clk 0:02:37.9]} 14. Ne5 {[%clk
0:02:20.6]} 14... Nxe5 {[%clk 0:02:25.1]} 15. dxe5 {[%clk 0:02:19.2]} 15... Ne4
{[%clk 0:02:24.4]} 16. cxd5 {[%clk 0:02:18.2]} 16... Nxd2 {[%clk 0:02:16.8]} 17.
Rxd2 {[%clk 0:02:16.2]} 17... Bxe5 {[%clk 0:02:15.3]} 18. Bxe5 {[%clk
0:01:53.2]} 18... Qxe5 {[%clk 0:02:14.4]} 19. Bc4 {[%clk 0:01:54.1]} 19... b5
{[%clk 0:01:50.9]} 20. Bxb5 {[%clk 0:01:40.7]} 20... Bxd5 {[%clk 0:01:50.4]} 21.
e4 {[%clk 0:01:30.4]} 21... Ba8 {[%clk 0:01:47]} 22. Qe3 {[%clk 0:01:27.6]}
22... Rcd8 {[%clk 0:01:37.5]} 23. f4 {[%clk 0:01:26.5]} 23... Qc7 {[%clk
0:01:21.4]} 24. e5 {[%clk 0:00:55]} 24... Qb7 {[%clk 0:01:13.1]} 25. Bf1 {[%clk
0:00:55]} 25... Rd5 {[%clk 0:00:54]} 26. Rc1 {[%clk 0:00:47.7]} 26... Rfd8
{[%clk 0:00:48.7]} 27. Rxd5 {[%clk 0:00:44.9]} 27... Rxd5 {[%clk 0:00:48.3]} 28.
Rxc5 {[%clk 0:00:42.7]} 28... Rd1 {[%clk 0:00:47.5]} 29. Rc2 {[%clk 0:00:32.3]}
29... Qb5 {[%clk 0:00:34.2]} 30. Rf2 {[%clk 0:00:31.3]} 30... Qb7 {[%clk
0:00:28.2]} 31. f5 {[%clk 0:00:23]} 31... Qd5 {[%clk 0:00:25.3]} 32. fxg6 {[%clk
0:00:22.4]} 32... hxg6 {[%clk 0:00:24.1]} 33. Qg3 {[%clk 0:00:12.6]} 33... Kg7
{[%clk 0:00:19.8]} 34. Kh2 {[%clk 0:00:13.1]} 34... e6 {[%clk 0:00:16.7]} 35.
Bc4 {[%clk 0:00:12.4]} 35... Qd4 {[%clk 0:00:13.2]} 36. Bf1 {[%clk 0:00:08.9]}
36... Re1 {[%clk 0:00:12.3]} 37. Be2 {[%clk 0:00:08.2]} 37... a5 {[%clk
0:00:10.7]} 38. Bf3 {[%clk 0:00:08.3]} 38... Bxf3 {[%clk 0:00:09]} 39. Rxf3
{[%clk 0:00:08.1]} 39... Rxe5 {[%clk 0:00:07.2]} 40. Qf4 {[%clk 0:00:07.2]}
40... Qxf4+ {[%clk 0:00:05.8]} 41. Rxf4 {[%clk 0:00:07.8]} 41... Rd5 {[%clk
0:00:05.7]} 42. Ra4 {[%clk 0:00:08.2]} 42... Kf6 {[%clk 0:00:05.9]} 43. Kg3
{[%clk 0:00:08.8]} 43... g5 {[%clk 0:00:06.2]} 44. Kf3 {[%clk 0:00:09]} 44...
Kf5 {[%clk 0:00:06.1]} 45. g3 {[%clk 0:00:08.4]} 45... Kg6 {[%clk 0:00:05.9]}
46. h4 {[%clk 0:00:08.5]} 46... f5 {[%clk 0:00:05.1]} 47. hxg5 {[%clk
0:00:08.5]} 47... Kxg5 {[%clk 0:00:05.5]} 48. Rc4 {[%clk 0:00:09.1]} 48... Rd3+
{[%clk 0:00:05.2]} 49. Kf2 {[%clk 0:00:09.5]} 49... Rd2+ {[%clk 0:00:05.3]} 50.
Kf3 {[%clk 0:00:07.9]} 50... Rxa2 {[%clk 0:00:06.2]} 51. Rc6 {[%clk 0:00:08.3]}
51... e5 {[%clk 0:00:06.1]} 52. Ra6 {[%clk 0:00:07.8]} 52... e4+ {[%clk
0:00:06.4]} 53. Ke3 {[%clk 0:00:08.4]} 53... Ra3 {[%clk 0:00:06.7]} 54. Kd4
{[%clk 0:00:08.2]} 54... Rxb3 {[%clk 0:00:06.1]} 55. g4 {[%clk 0:00:08.5]} 55...
Kxg4 {[%clk 0:00:04.7]} 56. Rxa5 {[%clk 0:00:09.4]} 56... e3 {[%clk 0:00:03.1]}
57. Ra2 {[%clk 0:00:08.1]} 57... f4 {[%clk 0:00:02.9]} 58. Kc4 {[%clk
0:00:08.2]} 58... Rb7 {[%clk 0:00:02.2]} 59. Rg2+ {[%clk 0:00:08.9]} 59... Kf3
{[%clk 0:00:02.5]} 60. Rh2 {[%clk 0:00:09.3]} 60... e2 {[%clk 0:00:02.7]} 61.
Rh3+ {[%clk 0:00:10]} 61... Kf2 {[%clk 0:00:02.9]} 62. Rh7 {[%clk 0:00:10.7]}
62... e1=Q {[%clk 0:00:02.6]} 63. Rxb7 {[%clk 0:00:11.2]} 63... Qe2+ {[%clk
0:00:02.4]} 64. Kc5 {[%clk 0:00:11.8]} 64... Qe3+ {[%clk 0:00:02.4]} 65. Kd6
{[%clk 0:00:12.3]} 65... Qd4+ {[%clk 0:00:02.5]} 66. Ke7 {[%clk 0:00:12.8]}
66... Qe4+ {[%clk 0:00:02.6]} 67. Kd8 {[%clk 0:00:13.1]} 67... Qxb7 {[%clk
0:00:02.5]} 68. Ke8 {[%clk 0:00:13.8]} 68... Qc6+ {[%clk 0:00:02.7]} 69. Kf8
{[%clk 0:00:14.7]} 69... Qd6+ {[%clk 0:00:03]} 70. Kg7 {[%clk 0:00:15.6]} 70...
Qe6 {[%clk 0:00:03.4]} 71. Kh8 {[%clk 0:00:15.7]} 71... f3 {[%clk 0:00:04.3]}
72. Kg7 {[%clk 0:00:15.5]} 72... Kg2 {[%clk 0:00:04.6]} 73. Kh8 {[%clk
0:00:16.4]} 73... f2 {[%clk 0:00:05.2]} 74. Kg7 {[%clk 0:00:17.1]} 74... f1=Q
{[%clk 0:00:05.4]} 75. Kh8 {[%clk 0:00:18]} 75... Qff6+ {[%clk 0:00:05.4]} 76.
Kh7 {[%clk 0:00:15.1]} 76... Qg6+ {[%clk 0:00:05.5]} 77. Kh8 {[%clk 0:00:15.1]}
77... Qeg8# {[%clk 0:00:05.5]} 0-1

[Event "*** SCC Grand Prix: Titled Tuesday Blitz"]
[Site "Chess.com"]
[Date "2020.10.13"]
[Round "3"]
[White "pooh2012"]
[Black "Colombiano07"]
[Result "1/2-1/2"]
[WhiteElo "2424"]
[BlackElo "2245"]
[TimeControl "180+1"]
[EndTime "10:30:45 PDT"]
[Termination "Game drawn by repetition"]

1. d4 {[%clk 0:03:00.9]} 1... d5 {[%clk 0:02:57.1]} 2. Nc3 {[%clk 0:02:58.7]}
2... e6 {[%clk 0:02:56.8]} 3. Bf4 {[%clk 0:02:56.7]} 3... Bd6 {[%clk 0:02:57.3]}
4. Qd2 {[%clk 0:02:51.8]} 4... a6 {[%clk 0:02:55]} 5. g4 {[%clk 0:02:48.3]} 5...
b5 {[%clk 0:02:54.5]} 6. h4 {[%clk 0:02:35.8]} 6... Nf6 {[%clk 0:02:51.4]} 7. f3
{[%clk 0:02:33.9]} 7... Bxf4 {[%clk 0:02:44.4]} 8. Qxf4 {[%clk 0:02:33.4]} 8...
Qd6 {[%clk 0:02:45.3]} 9. Qxd6 {[%clk 0:02:23.2]} 9... cxd6 {[%clk 0:02:46.2]}
10. a3 {[%clk 0:02:21.7]} 10... Nc6 {[%clk 0:02:12.2]} 11. e3 {[%clk 0:02:19.7]}
11... Bb7 {[%clk 0:02:11.8]} 12. Nge2 {[%clk 0:02:17.4]} 12... Nd7 {[%clk
0:02:07.2]} 13. O-O-O {[%clk 0:02:14.1]} 13... Nb6 {[%clk 0:02:07]} 14. b3
{[%clk 0:02:12.3]} 14... O-O-O {[%clk 0:02:01.1]} 15. Nf4 {[%clk 0:02:08.9]}
15... Kb8 {[%clk 0:02:00.5]} 16. Kb2 {[%clk 0:02:07.9]} 16... Ka7 {[%clk
0:02:00.4]} 17. g5 {[%clk 0:02:04.8]} 17... Rc8 {[%clk 0:01:59.8]} 18. h5 {[%clk
0:01:57.8]} 18... Rc7 {[%clk 0:02:00]} 19. Bd3 {[%clk 0:01:51.5]} 19... Rhc8
{[%clk 0:01:56.3]} 20. g6 {[%clk 0:01:41.5]} 20... hxg6 {[%clk 0:01:48.9]} 21.
hxg6 {[%clk 0:01:41]} 21... Nd8 {[%clk 0:01:20.8]} 22. gxf7 {[%clk 0:01:32.1]}
22... Rxf7 {[%clk 0:01:18.2]} 23. Rh7 {[%clk 0:01:15.5]} 23... Rfc7 {[%clk
0:01:12.2]} 24. Nfe2 {[%clk 0:01:03.1]} 24... e5 {[%clk 0:01:00.8]} 25. Bxb5
{[%clk 0:00:45.6]} 25... axb5 {[%clk 0:00:29.5]} 26. Nxb5+ {[%clk 0:00:44.5]}
26... Kb8 {[%clk 0:00:30.4]} 27. Nxc7 {[%clk 0:00:45.1]} 27... Rxc7 {[%clk
0:00:31.3]} 28. Rg1 {[%clk 0:00:43.6]} 28... Ne6 {[%clk 0:00:29.4]} 29. Rg6
{[%clk 0:00:42.5]} 29... Bc8 {[%clk 0:00:29.8]} 30. f4 {[%clk 0:00:36.3]} 30...
exf4 {[%clk 0:00:26]} 31. Nxf4 {[%clk 0:00:35.3]} 31... Nxf4 {[%clk 0:00:25.8]}
32. exf4 {[%clk 0:00:33]} 32... Rf7 {[%clk 0:00:26.7]} 33. Rxd6 {[%clk
0:00:25.7]} 33... Kc7 {[%clk 0:00:27.4]} 34. Rg6 {[%clk 0:00:19.8]} 34... Rxf4
{[%clk 0:00:25.6]} 35. Rhxg7+ {[%clk 0:00:19.8]} 35... Nd7 {[%clk 0:00:22.9]}
36. Kc3 {[%clk 0:00:17.6]} 36... Rf3+ {[%clk 0:00:22.1]} 37. Kb4 {[%clk
0:00:17.3]} 37... Rf4 {[%clk 0:00:20.4]} 38. c3 {[%clk 0:00:17.3]} 38... Rf3
{[%clk 0:00:19.5]} 39. Rg5 {[%clk 0:00:16]} 39... Bb7 {[%clk 0:00:18.5]} 40. a4
{[%clk 0:00:13.8]} 40... Bc6 {[%clk 0:00:18.6]} 41. a5 {[%clk 0:00:13.8]} 41...
Rf1 {[%clk 0:00:18.3]} 42. c4 {[%clk 0:00:10.1]} 42... dxc4 {[%clk 0:00:17.6]}
43. d5 {[%clk 0:00:10.7]} 43... Bb7 {[%clk 0:00:12.5]} 44. bxc4 {[%clk
0:00:07.9]} 44... Rb1+ {[%clk 0:00:12.3]} 45. Kc3 {[%clk 0:00:08.4]} 45... Rc1+
{[%clk 0:00:12.2]} 46. Kb3 {[%clk 0:00:08.9]} 46... Rb1+ {[%clk 0:00:12.5]} 47.
Kc2 {[%clk 0:00:09]} 47... Rb4 {[%clk 0:00:12.5]} 48. Kc3 {[%clk 0:00:08.9]}
48... Ra4 {[%clk 0:00:13.1]} 49. Kb3 {[%clk 0:00:08.8]} 49... Rxa5 {[%clk
0:00:12.8]} 50. d6+ {[%clk 0:00:08.9]} 50... Kb6 {[%clk 0:00:11.1]} 51. Rxa5
{[%clk 0:00:08.6]} 51... Kxa5 {[%clk 0:00:10.7]} 52. Rxd7 {[%clk 0:00:08.7]}
52... Kb6 {[%clk 0:00:11.3]} 53. Rc7 {[%clk 0:00:07.2]} 53... Bc6 {[%clk
0:00:11.1]} 54. Kb4 {[%clk 0:00:07.5]} 54... Be8 {[%clk 0:00:10.3]} 55. c5+
{[%clk 0:00:08.4]} 55... Ka6 {[%clk 0:00:10]} 56. Kc3 {[%clk 0:00:09.3]} 56...
Kb5 {[%clk 0:00:10]} 57. Kd4 {[%clk 0:00:10.2]} 57... Bc6 {[%clk 0:00:08.4]} 58.
Ke5 {[%clk 0:00:11.1]} 58... Kxc5 {[%clk 0:00:08]} 59. Kf6 {[%clk 0:00:12]}
59... Kxd6 {[%clk 0:00:08.2]} 60. Rg7 {[%clk 0:00:11.2]} 60... Bd5 {[%clk
0:00:08.1]} 61. Rg5 {[%clk 0:00:10.9]} 61... Kc5 {[%clk 0:00:08.7]} 62. Re5
{[%clk 0:00:11.6]} 62... Kd4 {[%clk 0:00:08.6]} 63. Rg5 {[%clk 0:00:11.3]} 63...
Bc4 {[%clk 0:00:08.6]} 64. Ke7 {[%clk 0:00:11.7]} 64... Bd5 {[%clk 0:00:08.9]}
65. Kd6 {[%clk 0:00:12.1]} 65... Bc4 {[%clk 0:00:09.8]} 66. Rg4+ {[%clk
0:00:12.4]} 66... Kc3 {[%clk 0:00:09.9]} 67. Kc5 {[%clk 0:00:12.6]} 67... Bd3
{[%clk 0:00:09.6]} 68. Rg3 {[%clk 0:00:13]} 68... Kc2 {[%clk 0:00:09.7]} 69. Kd4
{[%clk 0:00:13.2]} 69... Bh7 {[%clk 0:00:09.5]} 70. Rh3 {[%clk 0:00:13]} 70...
Bg6 {[%clk 0:00:09.2]} 71. Rh6 {[%clk 0:00:12.1]} 71... Bf5 {[%clk 0:00:09.4]}
72. Rh2+ {[%clk 0:00:11.9]} 72... Kb1 {[%clk 0:00:09.1]} 73. Kc3 {[%clk
0:00:11.4]} 73... Ka1 {[%clk 0:00:09.2]} 74. Kb3 {[%clk 0:00:09]} 74... Be6+
{[%clk 0:00:09.5]} 75. Kc3 {[%clk 0:00:09.2]} 75... Bf5 {[%clk 0:00:09.7]} 76.
Rf2 {[%clk 0:00:09]} 76... Bg6 {[%clk 0:00:09.7]} 77. Rf6 {[%clk 0:00:08.4]}
77... Be4 {[%clk 0:00:09.7]} 78. Rf4 {[%clk 0:00:06.3]} 78... Bg6 {[%clk
0:00:09.8]} 79. Rg4 {[%clk 0:00:04]} 79... Bf5 {[%clk 0:00:10]} 80. Rg2 {[%clk
0:00:02.7]} 80... Be4 {[%clk 0:00:10.1]} 81. Rf2 {[%clk 0:00:03.6]} 81... Bg6
{[%clk 0:00:10.1]} 82. Kb4 {[%clk 0:00:03.7]} 82... Be4 {[%clk 0:00:10.1]} 83.
Ka3 {[%clk 0:00:04]} 83... Bg6 {[%clk 0:00:10.2]} 84. Rf1+ {[%clk 0:00:03.5]}
84... Bb1 {[%clk 0:00:10.1]} 85. Rf2 {[%clk 0:00:02.6]} 85... Bd3 {[%clk
0:00:10.2]} 86. Kb3 {[%clk 0:00:03.5]} 86... Be4 {[%clk 0:00:10.2]} 87. Kc3
{[%clk 0:00:04.3]} 87... Bg6 {[%clk 0:00:10.2]} 1/2-1/2

[Event "*** SCC Grand Prix: Titled Tuesday Blitz"]
[Site "Chess.com"]
[Date "2020.10.13"]
[Round "3"]
[White "karenzadita"]
[Black "Mikhail_Golubev"]
[Result "1/2-1/2"]
[WhiteElo "2324"]
[BlackElo "2535"]
[TimeControl "180+1"]
[EndTime "10:30:56 PDT"]
[Termination "Game drawn - insufficient material"]

1. e4 {[%clk 0:03:00.9]} 1... c5 {[%clk 0:02:59.3]} 2. c3 {[%clk 0:03:00.5]}
2... d6 {[%clk 0:02:58.4]} 3. d4 {[%clk 0:02:59.7]} 3... Nf6 {[%clk 0:02:58.4]}
4. Bd3 {[%clk 0:02:55.9]} 4... g6 {[%clk 0:02:58.2]} 5. Nf3 {[%clk 0:02:54.8]}
5... Bg7 {[%clk 0:02:57.8]} 6. h3 {[%clk 0:02:54]} 6... O-O {[%clk 0:02:57.4]}
7. O-O {[%clk 0:02:54.5]} 7... Nfd7 {[%clk 0:02:53.7]} 8. Be3 {[%clk 0:02:49.8]}
8... Nc6 {[%clk 0:02:48.1]} 9. Qd2 {[%clk 0:02:40]} 9... cxd4 {[%clk 0:02:31.9]}
10. cxd4 {[%clk 0:02:39]} 10... e5 {[%clk 0:02:31.9]} 11. d5 {[%clk 0:02:36.2]}
11... Nd4 {[%clk 0:02:30.8]} 12. Bxd4 {[%clk 0:02:13.8]} 12... exd4 {[%clk
0:02:30]} 13. Na3 {[%clk 0:02:12]} 13... Nc5 {[%clk 0:02:19.6]} 14. Nb5 {[%clk
0:02:03]} 14... Qb6 {[%clk 0:02:00.9]} 15. Nbxd4 {[%clk 0:01:46.7]} 15... Bd7
{[%clk 0:01:56]} 16. b3 {[%clk 0:01:23.3]} 16... Rfe8 {[%clk 0:01:45.5]} 17.
Rfe1 {[%clk 0:01:21.2]} 17... a5 {[%clk 0:01:33.6]} 18. Rab1 {[%clk 0:01:06]}
18... Rac8 {[%clk 0:01:29.1]} 19. a3 {[%clk 0:00:55.7]} 19... Nxd3 {[%clk
0:01:20.4]} 20. Qxd3 {[%clk 0:00:55.4]} 20... Qc5 {[%clk 0:01:20.3]} 21. b4
{[%clk 0:00:53.4]} 21... axb4 {[%clk 0:01:12.4]} 22. Rxb4 {[%clk 0:00:50.8]}
22... b6 {[%clk 0:00:57.4]} 23. Reb1 {[%clk 0:00:48.1]} 23... Ra8 {[%clk
0:00:41.2]} 24. R1b3 {[%clk 0:00:24.9]} 24... Qc1+ {[%clk 0:00:39.9]} 25. Kh2
{[%clk 0:00:24.2]} 25... Qf4+ {[%clk 0:00:39.9]} 26. g3 {[%clk 0:00:22.4]} 26...
Qxe4 {[%clk 0:00:40.8]} 27. Rxb6 {[%clk 0:00:18.6]} 27... Qxd3 {[%clk
0:00:38.2]} 28. Rxd3 {[%clk 0:00:17.9]} 28... Reb8 {[%clk 0:00:33]} 29. Rxd6
{[%clk 0:00:16.9]} 29... Be8 {[%clk 0:00:29.5]} 30. Nc6 {[%clk 0:00:16]} 30...
Rb7 {[%clk 0:00:25.9]} 31. Rd8 {[%clk 0:00:03]} 31... Rxd8 {[%clk 0:00:23.7]}
32. Nxd8 {[%clk 0:00:02.8]} 32... Rb2 {[%clk 0:00:23.3]} 33. Nc6 {[%clk
0:00:03.2]} 33... Rxf2+ {[%clk 0:00:21.9]} 34. Kg1 {[%clk 0:00:03.9]} 34... Re2
{[%clk 0:00:20.6]} 35. Ne7+ {[%clk 0:00:04.5]} 35... Rxe7 {[%clk 0:00:19.1]} 36.
d6 {[%clk 0:00:05.4]} 36... Ra7 {[%clk 0:00:18.4]} 37. a4 {[%clk 0:00:04.8]}
37... Bxa4 {[%clk 0:00:17.4]} 38. Ra3 {[%clk 0:00:03.8]} 38... Ra6 {[%clk
0:00:14.6]} 39. d7 {[%clk 0:00:03.8]} 39... Bf6 {[%clk 0:00:14.6]} 40. Ne5
{[%clk 0:00:02.2]} 40... Bb5 {[%clk 0:00:14.1]} 41. Rxa6 {[%clk 0:00:01.6]}
41... Bxa6 {[%clk 0:00:13.8]} 42. Nc6 {[%clk 0:00:02.5]} 42... Kg7 {[%clk
0:00:12.8]} 43. d8=Q {[%clk 0:00:02.2]} 43... Bxd8 {[%clk 0:00:11.9]} 44. Nxd8
{[%clk 0:00:03.1]} 44... Bc8 {[%clk 0:00:10.9]} 45. Nc6 {[%clk 0:00:03.2]} 45...
Bxh3 {[%clk 0:00:09.7]} 46. Kh2 {[%clk 0:00:04.1]} 46... Bg4 {[%clk 0:00:09]}
47. Ne5 {[%clk 0:00:04.9]} 47... h5 {[%clk 0:00:09.2]} 48. Nd3 {[%clk
0:00:04.2]} 48... f6 {[%clk 0:00:09.5]} 49. Nf4 {[%clk 0:00:04.6]} 49... Kf7
{[%clk 0:00:09.4]} 50. Kg2 {[%clk 0:00:04.1]} 50... Kg7 {[%clk 0:00:09.8]} 51.
Nd5 {[%clk 0:00:04.3]} 51... Kh6 {[%clk 0:00:10.5]} 52. Ne3 {[%clk 0:00:04.7]}
52... Kg5 {[%clk 0:00:10.6]} 53. Nd5 {[%clk 0:00:04.9]} 53... Be6 {[%clk
0:00:10.6]} 54. Ne7 {[%clk 0:00:04.1]} 54... Bd7 {[%clk 0:00:10.5]} 55. Nd5
{[%clk 0:00:03.5]} 55... Be6 {[%clk 0:00:09.9]} 56. Ne7 {[%clk 0:00:03.6]} 56...
Bg4 {[%clk 0:00:09.1]} 57. Kf2 {[%clk 0:00:03.1]} 57... Bf5 {[%clk 0:00:07.1]}
58. Kg2 {[%clk 0:00:02]} 58... Bb1 {[%clk 0:00:06.8]} 59. Kf2 {[%clk 0:00:02.2]}
59... h4 {[%clk 0:00:07]} 60. gxh4+ {[%clk 0:00:02]} 60... Kxh4 {[%clk
0:00:07.2]} 61. Nd5 {[%clk 0:00:02.9]} 61... Kg5 {[%clk 0:00:07.3]} 62. Ne3
{[%clk 0:00:02.5]} 62... Bf5 {[%clk 0:00:07.4]} 63. Nd5 {[%clk 0:00:02.6]} 63...
Be6 {[%clk 0:00:07.5]} 64. Ne3 {[%clk 0:00:02.1]} 64... Bg8 {[%clk 0:00:07.8]}
65. Kg3 {[%clk 0:00:01.9]} 65... f5 {[%clk 0:00:08]} 66. Ng2 {[%clk 0:00:02.8]}
66... Bf7 {[%clk 0:00:07.3]} 67. Nf4 {[%clk 0:00:03.7]} 67... Bc4 {[%clk
0:00:07.3]} 68. Ng2 {[%clk 0:00:03.6]} 68... Be6 {[%clk 0:00:07]} 69. Nf4 {[%clk
0:00:04.5]} 69... Bf7 {[%clk 0:00:07.1]} 70. Ng2 {[%clk 0:00:04.6]} 70... Kf6
{[%clk 0:00:07.6]} 71. Nf4 {[%clk 0:00:05.5]} 71... g5 {[%clk 0:00:08.1]} 72.
Ng2 {[%clk 0:00:05]} 72... Ke5 {[%clk 0:00:08.3]} 73. Ne1 {[%clk 0:00:03.9]}
73... f4+ {[%clk 0:00:08.2]} 74. Kg4 {[%clk 0:00:04.3]} 74... Kf6 {[%clk
0:00:08.6]} 75. Nf3 {[%clk 0:00:04.6]} 75... Be6+ {[%clk 0:00:08.7]} 76. Kh5
{[%clk 0:00:04.2]} 76... Bf7+ {[%clk 0:00:08.5]} 77. Kg4 {[%clk 0:00:04.1]}
77... Be6+ {[%clk 0:00:08.7]} 78. Kh5 {[%clk 0:00:04.5]} 78... Bf5 {[%clk
0:00:08.7]} 79. Nxg5 {[%clk 0:00:04]} 79... Bc2 {[%clk 0:00:09]} 80. Kg4 {[%clk
0:00:02.3]} 80... f3 {[%clk 0:00:09.4]} 81. Nxf3 {[%clk 0:00:01.9]} 1/2-1/2

[Event "*** SCC Grand Prix: Titled Tuesday Blitz"]
[Site "Chess.com"]
[Date "2020.10.13"]
[Round "3"]
[White "parintele_chess"]
[Black "Pavalamalli"]
[Result "1/2-1/2"]
[WhiteElo "2134"]
[BlackElo "2299"]
[TimeControl "180+1"]
[EndTime "10:30:59 PDT"]
[Termination "Game drawn by stalemate"]

1. d4 {[%clk 0:03:00.5]} 1... Nf6 {[%clk 0:02:58.3]} 2. c4 {[%clk 0:03:00.4]}
2... e6 {[%clk 0:02:58.6]} 3. Nc3 {[%clk 0:03:00.2]} 3... Bb4 {[%clk 0:02:58.1]}
4. e3 {[%clk 0:03:00.3]} 4... O-O {[%clk 0:02:57.9]} 5. Ne2 {[%clk 0:02:59.6]}
5... d5 {[%clk 0:02:58.1]} 6. a3 {[%clk 0:02:59.7]} 6... Bxc3+ {[%clk
0:02:52.6]} 7. Nxc3 {[%clk 0:03:00.6]} 7... b6 {[%clk 0:02:52.7]} 8. Bd3 {[%clk
0:02:58.6]} 8... Bb7 {[%clk 0:02:52.7]} 9. O-O {[%clk 0:02:58.7]} 9... dxc4
{[%clk 0:02:51.9]} 10. Bxc4 {[%clk 0:02:58.7]} 10... Nbd7 {[%clk 0:02:51.2]} 11.
f3 {[%clk 0:02:53.5]} 11... c5 {[%clk 0:02:51.3]} 12. d5 {[%clk 0:02:50.7]}
12... exd5 {[%clk 0:02:50.3]} 13. Nxd5 {[%clk 0:02:51]} 13... Nxd5 {[%clk
0:02:50.4]} 14. Bxd5 {[%clk 0:02:51.9]} 14... Bxd5 {[%clk 0:02:50.8]} 15. Qxd5
{[%clk 0:02:52.8]} 15... Nf6 {[%clk 0:02:51.1]} 16. Qb3 {[%clk 0:02:42.8]} 16...
Qd5 {[%clk 0:02:47.8]} 17. Qxd5 {[%clk 0:02:37.9]} 17... Nxd5 {[%clk 0:02:46.8]}
18. e4 {[%clk 0:02:38.8]} 18... Ne7 {[%clk 0:02:46.4]} 19. Bg5 {[%clk
0:02:31.5]} 19... Nc6 {[%clk 0:02:46]} 20. Rad1 {[%clk 0:02:29.3]} 20... f6
{[%clk 0:02:44.1]} 21. Be3 {[%clk 0:02:26.2]} 21... Rfd8 {[%clk 0:02:42.1]} 22.
Kf2 {[%clk 0:02:22.3]} 22... Kf7 {[%clk 0:02:40.4]} 23. Ke2 {[%clk 0:02:20.9]}
23... Na5 {[%clk 0:02:35.9]} 24. b4 {[%clk 0:02:10.8]} 24... cxb4 {[%clk
0:02:32.6]} 25. axb4 {[%clk 0:02:11.7]} 25... Nc4 {[%clk 0:02:32.1]} 26. Rxd8
{[%clk 0:01:58]} 26... Rxd8 {[%clk 0:02:28.3]} 27. Rc1 {[%clk 0:01:58.2]} 27...
b5 {[%clk 0:02:25.4]} 28. Ra1 {[%clk 0:01:50.9]} 28... Ke6 {[%clk 0:01:47]} 29.
Rxa7 {[%clk 0:01:43.3]} 29... Rd7 {[%clk 0:01:47.2]} 30. Rxd7 {[%clk 0:01:16.7]}
30... Kxd7 {[%clk 0:01:46.8]} 31. Kd3 {[%clk 0:01:16]} 31... Kc6 {[%clk
0:01:44.5]} 32. Bc5 {[%clk 0:01:11.6]} 32... Ne5+ {[%clk 0:01:43.3]} 33. Kc3
{[%clk 0:01:04.6]} 33... Nc4 {[%clk 0:01:42.1]} 34. Bf8 {[%clk 0:01:02.6]} 34...
g6 {[%clk 0:01:36.7]} 35. Bg7 {[%clk 0:00:38.6]} 35... f5 {[%clk 0:01:36.3]} 36.
exf5 {[%clk 0:00:38.9]} 36... gxf5 {[%clk 0:01:35.7]} 37. Kd4 {[%clk 0:00:37.8]}
37... h5 {[%clk 0:01:30.6]} 38. h4 {[%clk 0:00:37.3]} 38... Kd6 {[%clk
0:01:28.5]} 39. Bf8+ {[%clk 0:00:34.4]} 39... Kc6 {[%clk 0:01:26.1]} 40. Kd3
{[%clk 0:00:23.6]} 40... Kd5 {[%clk 0:01:25.4]} 41. Ke2 {[%clk 0:00:15.4]} 41...
Kd4 {[%clk 0:01:18.7]} 42. Kf2 {[%clk 0:00:12.7]} 42... Kd3 {[%clk 0:00:57.4]}
43. Kg3 {[%clk 0:00:12.2]} 43... Ne3 {[%clk 0:00:55.8]} 44. Kf4 {[%clk 0:00:10]}
44... Nxg2+ {[%clk 0:00:55.7]} 45. Kxf5 {[%clk 0:00:09.9]} 45... Nxh4+ {[%clk
0:00:55.6]} 46. Kg5 {[%clk 0:00:10.2]} 46... Nxf3+ {[%clk 0:00:55.6]} 47. Kxh5
{[%clk 0:00:11.1]} 47... Kc4 {[%clk 0:00:53.2]} 48. Kg4 {[%clk 0:00:11]} 48...
Ne5+ {[%clk 0:00:53.1]} 49. Kf5 {[%clk 0:00:11.2]} 49... Nd3 {[%clk 0:00:52.1]}
50. Ke4 {[%clk 0:00:10.5]} 50... Nxb4 {[%clk 0:00:52.3]} 51. Ke3 {[%clk
0:00:07.5]} 51... Kc3 {[%clk 0:00:42.1]} 52. Ke2 {[%clk 0:00:04.3]} 52... Nd3
{[%clk 0:00:41.7]} 53. Kd1 {[%clk 0:00:03.8]} 53... Kc4 {[%clk 0:00:31.4]} 54.
Kd2 {[%clk 0:00:03.8]} 54... Ne5 {[%clk 0:00:26]} 55. Kc2 {[%clk 0:00:03.4]}
55... Nc6 {[%clk 0:00:25.5]} 56. Kb2 {[%clk 0:00:02.8]} 56... Nd4 {[%clk
0:00:25.6]} 57. Kc1 {[%clk 0:00:02.5]} 57... Ne6 {[%clk 0:00:25.4]} 58. Be7
{[%clk 0:00:02.4]} 58... Kc3 {[%clk 0:00:23.5]} 59. Bd6 {[%clk 0:00:02.2]} 59...
Nd4 {[%clk 0:00:23.3]} 60. Bf8 {[%clk 0:00:02]} 60... Nb3+ {[%clk 0:00:23.5]}
61. Kb1 {[%clk 0:00:02.3]} 61... Nd2+ {[%clk 0:00:23.8]} 62. Kc1 {[%clk
0:00:02.5]} 62... Nc4 {[%clk 0:00:23.9]} 63. Kb1 {[%clk 0:00:02.6]} 63... Ne5
{[%clk 0:00:22.1]} 64. Bg7 {[%clk 0:00:02.2]} 64... Kd4 {[%clk 0:00:20.3]} 65.
Kb2 {[%clk 0:00:02.5]} 65... Kd5 {[%clk 0:00:20.3]} 66. Bxe5 {[%clk 0:00:02.9]}
66... Kxe5 {[%clk 0:00:20.6]} 67. Kb3 {[%clk 0:00:03.8]} 67... Kd5 {[%clk
0:00:21.1]} 68. Kb4 {[%clk 0:00:04.2]} 68... Kc6 {[%clk 0:00:21.8]} 69. Kc3
{[%clk 0:00:04.4]} 69... Kc5 {[%clk 0:00:22.2]} 70. Kb3 {[%clk 0:00:04.8]} 70...
b4 {[%clk 0:00:22.8]} 71. Kb2 {[%clk 0:00:05.2]} 71... Kc4 {[%clk 0:00:23.2]}
72. Kc2 {[%clk 0:00:05.6]} 72... b3+ {[%clk 0:00:23.6]} 73. Kb2 {[%clk 0:00:06]}
73... Kb4 {[%clk 0:00:24.1]} 74. Kb1 {[%clk 0:00:06.3]} 74... Ka4 {[%clk
0:00:24]} 75. Kb2 {[%clk 0:00:06.1]} 75... Kb4 {[%clk 0:00:24.2]} 76. Kb1 {[%clk
0:00:06.5]} 76... Kb5 {[%clk 0:00:24.3]} 77. Kb2 {[%clk 0:00:06.4]} 77... Kc4
{[%clk 0:00:24.8]} 78. Kb1 {[%clk 0:00:05]} 78... Kc3 {[%clk 0:00:24.8]} 79. Kc1
{[%clk 0:00:05.2]} 79... Kd3 {[%clk 0:00:25.2]} 80. Kb2 {[%clk 0:00:04.7]} 80...
Kc4 {[%clk 0:00:25.5]} 81. Kb1 {[%clk 0:00:05]} 81... Kc3 {[%clk 0:00:25.2]} 82.
Kc1 {[%clk 0:00:05.3]} 82... b2+ {[%clk 0:00:25.8]} 83. Kb1 {[%clk 0:00:05.6]}
83... Kb3 {[%clk 0:00:25.3]} 1/2-1/2